Cogmind - Beta 13 @@@ ROGUE MODE // 2024.07.06 @ 12:06:20 Player: Minty Result: Self-destructed Performance ------------- Evolutions (7) 3500 Regions Visited (11) 2200 Robots Destroyed (91) 455 Value Destroyed (3015) 3015 Prototype IDs (34) 680 Alien Tech Used (0) 0 Bonus (1542) 1542 TOTAL SCORE: 11392 Bonus ------- High Alert Combat Kills 201 Follower Combat Kills 398 Entered DSFs 500 Scanned by Researcher 500 Friendly Fire -57 Cogmind --------- Core Integrity 561/1300 Matter 22/300 Energy 100/100 System Corruption 10% Temperature Cool (0) Movement Core (50) Location -3/Testing Parts ------- > --- POWER (2) -------- (None) > --- PROPULSION (5) --- (None) > --- UTILITY (11) ----- Advanced Signal Interpreter Advanced Targeting Computer Advanced Transmission Jammer Advanced Hacking Suite System Shield > --- WEAPON (3) ------- (None) > --- INVENTORY (5) ---- Centrium Medium Armor Plating Authchip [Propulsion] Enhanced Nova Cannon Enhanced Coil Gun Improved Remote Datajack Peak State ------------ > --- POWER ------------ Light Antimatter Reactor Light Quantum Reactor > --- PROPULSION ------- Field Propulsion Array Q-thruster Impulse Thruster Array > --- UTILITY ---------- Improved Sensor Array Improved Signal Interpreter Advanced Transmission Jammer Advanced Hacking Suite Advanced Hacking Suite Advanced Hacking Suite Advanced Hacking Suite System Shield System Shield Authchip [R/NC] > --- WEAPON ----------- Enhanced Coil Gun Neutron Missile Launcher > --- INVENTORY -------- Medium Storage Unit Improved Force Field Authchip [Propulsion] Authchip [Propulsion] Enhanced Nova Cannon [Rating: 118] Favorites ----------- Power Ion Engine Engine Ion Engine Power Core Neutrino Core Reactor Light Antimatter Reactor Propulsion Improved Flight Unit Leg Improved Aluminum Leg Wheel Compact Wheel Hover Unit Improved Gyrokinetic Inverter Flight Unit Improved Flight Unit Utility System Shield Device Improved Sensor Array Storage Small Storage Unit Processor Improved Signal Interpreter Hackware System Shield Protection Improved Propulsion Shielding Weapon Autogun Energy Gun Beam Rifle Energy Cannon Heavy Disruptor Cannon Ballistic Gun Autogun Ballistic Cannon Light Cannon Launcher Mini Grenade Launcher Special Weapon Improved Remote Datajack Build | -11 -10 -9 -8 -7 -6 -5 -5 -4 -4 -3 -3 ------- Run | Yrd Mat Mat Mat Fac Fac Fac DSF Fac Arm Res Tes Slots Evolved 14 | . . 2 2 2 2 2 . 2 . 2 . Power 1 | . . . . . . 1 . . . . . Propulsion 3 | . . . 1 1 . . . 1 . . . Utility 9 | . . 2 1 1 2 1 . 1 . 1 . Weapon 1 | . . . . . . . . . . 1 . Parts Attached 136 | . 8 25 31 11 6 2 9 10 18 8 8 Power 16 | . . 4 5 1 . . 1 1 3 . 1 Engine 10 | . . 4 5 1 . . . . . . . Core 2 | . . . . . . . 1 . 1 . . Reactor 4 | . . . . . . . . 1 2 . 1 Propulsion 29 | . 2 7 5 4 . . 2 1 3 3 2 Treads . | . . . . . . . . . . . . Leg 5 | . 2 3 . . . . . . . . . Wheel 2 | . . 2 . . . . . . . . . Hover 1 | . . . . . . . . . 1 . . Flight 21 | . . 2 5 4 . . 2 1 2 3 2 Utility 50 | . 2 6 10 3 5 2 5 7 5 4 1 Device 16 | . 1 . 1 1 3 2 . 5 2 1 . Storage 3 | . . . 3 . . . . . . . . Processor 10 | . 1 1 4 . . . 1 . 1 2 . Hackware 16 | . . 4 1 2 1 . 4 1 2 1 . Protection 5 | . . 1 1 . 1 . . 1 . . 1 Artifact . | . . . . . . . . . . . . Weapon 41 | . 4 8 11 3 1 . 1 1 7 1 4 Energy Gun 6 | . 1 1 3 1 . . . . . . . Energy Cannon 9 | . . 1 3 . . . . 1 4 . . Ballistic Gun 13 | . 3 3 4 1 . . . . 1 . 1 Ballistic Cannon 1 | . . 1 . . . . . . . . . Launcher 11 | . . 2 1 1 1 . 1 . 2 . 3 Special Weapon 1 | . . . . . . . . . . 1 . Impact Weapon . | . . . . . . . . . . . . Slashing Weapon . | . . . . . . . . . . . . Piercing Weapon . | . . . . . . . . . . . . Special Melee Weapon . | . . . . . . . . . . . . Unidentified Prototypes 9 | . . 1 . . . . . . 3 1 4 Parts Lost 44 | . . 6 7 . 9 . 5 2 3 . 12 Power 5 | . . . 2 . 1 . . . 1 . 1 Propulsion 13 | . . 2 1 . 1 . 2 2 1 . 4 Utility 16 | . . 1 2 . 4 . 2 . 1 . 6 Weapon 10 | . . 3 2 . 3 . 1 . . . 1 Highest Loss Streak 8 | . . 2 2 . 8 . 5 1 2 . 6 To Critical Strikes . | . . . . . . . . . . . . Average Slot Usage (%) 83 | . 90 90 92 89 89 55 67 77 75 69 55 Engine 6 | . 14 11 8 7 3 . . . . . . Leg 5 | . 28 9 . . . . . . . . . Flight 14 | . . 5 27 24 24 17 19 19 12 11 8 Device 4 | . 3 1 2 3 4 8 1 6 9 8 5 Storage 6 | . 14 11 10 7 4 . . . . . . Processor 6 | . 1 . 13 7 6 5 8 5 5 6 9 Hackware 22 | . . 25 16 26 25 23 35 33 35 33 26 Protection 1 | . . 2 1 . 5 . . 1 . . . Energy Gun 3 | . 7 . 5 6 4 . . . . . . Ballistic Gun 7 | . 20 16 5 4 4 . . . 1 . . Naked Turns . | . . . . . . . . . . . . Heaviest Build 36 | 12 17 17 15 18 21 2 14 36 34 18 25 Greatest Support 39 | 20 26 26 15 21 21 15 18 33 39 38 30 Greatest Overweight (x) 3 | . . 3 . 1 . . 1 1 1 . 1 Average Overweight (x) . | . . . . . . . . . . . . Largest Inventory Capacity 15 | . 8 8 15 8 8 5 5 5 5 5 5 Average Capacity 6 | . 8 8 8 8 7 5 5 5 5 5 5 Most Carried 9 | . 8 8 9 8 8 5 5 5 5 5 5 Average Carried 6 | . 7 7 7 7 6 4 4 4 4 4 4 Final Capacity 8 | 8 8 8 8 8 5 5 5 5 5 5 5 Final Carried 8 | 6 8 8 7 8 5 4 4 5 5 4 5 Class Distribution -------------------- 42% | Hacker-Mutant 28% | Wizard-Mutant 18% | Mutant 5% | Hacker-Sprinter 4% | Wizard-Sprinter Dominant Class ---------------- Mutant | -10/Materials Hacker-Mutant | -9/Materials Hacker-Mutant | -8/Materials Hacker-Mutant | -7/Factory Hacker-Sprinter | -6/Factory Hacker-Mutant | -5/Factory Wizard-Mutant | -5/DSF Wizard-Sprinter | -4/Factory Wizard-Mutant | -4/Armory Wizard-Mutant | -3/Research Wizard-Mutant | -3/Testing Resources | -11 -10 -9 -8 -7 -6 -5 -5 -4 -4 -3 -3 ----------- Run | Yrd Mat Mat Mat Fac Fac Fac DSF Fac Arm Res Tes Matter Collected 2228 | 200 148 587 610 55 29 . 135 131 315 11 7 Remotely . | . . . . . . . . . . . . Salvage Created 2714 | . 366 647 941 40 174 . 23 131 196 . 196 Parts 182 | . 23 28 84 1 15 . 5 5 7 . 14 Haulers Intercepted 2 | . 1 1 . . . . . . . . . Recyclers Shooed 1 | . . 1 . . . . . . . . . Parts Field Recycled . | . . . . . . . . . . . . Retrieved Matter . | . . . . . . . . . . . . Parts Self-Destructed . | . . . . . . . . . . . . Prevented . | . . . . . . . . . . . . Kills | -11 -10 -9 -8 -7 -6 -5 -5 -4 -4 -3 -3 ------- Run | Yrd Mat Mat Mat Fac Fac Fac DSF Fac Arm Res Tes Combat Hostiles Destroyed 63 | . 10 14 24 . 5 . 2 1 2 . 5 Guns 38 | . 10 7 15 . 4 . . . 2 . . Cannons 4 | . . 1 3 . . . . . . . . AOE 20 | . . 6 6 . 1 . 2 . . . 5 Classes Destroyed 15 | . 4 5 3 . 1 . 1 . . . 1 Worker 7 | . . 2 5 . . . . . . . . Builder 6 | . . . 3 . . . . . . . 3 Tunneler 1 | . . . 1 . . . . . . . . Hauler 2 | . 1 1 . . . . . . . . . Recycler 2 | . . 1 1 . . . . . . . . Operator 4 | . 1 . . . 1 . . 1 1 . . Watcher 3 | . . . 1 1 . . . 1 . . . Swarmer 19 | . 3 . 12 . 4 . . . . . . Cutter 2 | . . . . . . . 2 . . . . Grunt 25 | . 7 8 4 . . . . 1 1 . 4 Brawler 3 | . . 2 . . . . . . 1 . . Duelist 2 | . . 2 . . . . . . . . . Researcher 3 | . . . . . . . . . . . 3 Sentry 10 | . . 2 8 . . . . . . . . Hunter 2 | . . . . . 1 . . . . . 1 Best Kill Streak 15 | . 3 8 15 1 4 . 2 1 1 . 11 Combat Bots Only 11 | . 3 6 11 . 4 . 2 1 1 . 3 Max Kills in Single Turn 3 | . 1 3 3 1 2 . 1 1 1 . 3 Gunslinging 1 | . . . . . 1 . . . . . . Exploded 3 | . . 2 3 . 1 . 1 . . . 2 Melee . | . . . . . . . . . . . . Uniques/NPCs Destroyed . | . . . . . . . . . . . . Combat | -11 -10 -9 -8 -7 -6 -5 -5 -4 -4 -3 -3 -------- Run | Yrd Mat Mat Mat Fac Fac Fac DSF Fac Arm Res Tes Hostile Shots Fired 659 | . 50 67 150 1 173 . 17 38 37 34 92 Missed 281 | . 16 21 65 1 70 . 8 20 20 17 43 Damage Taken 5992 | . 344 813 952 . 1114 . 389 462 453 331 1134 Core 2159 | . 86 163 294 . 415 . 175 159 128 175 564 Absorbed by Shields . | . . . . . . . . . . . . Redirected to Shielding 162 | . . . 13 . 98 . . 51 . . . Regen/Repaired (Parts) 150 | . . . 78 72 . . . . . . . Core Remaining (%) 72 | 100 65 59 46 100 51 . 82 . 75 . . Volleys Fired 258 | . 36 55 93 6 9 . 4 11 34 . 10 Largest 2 | . 2 2 2 2 2 . 1 1 1 . 1 Hottest 110 | . 70 68 89 97 97 . 36 110 110 . 49 Shots Fired 382 | . 72 95 131 8 18 . 4 11 34 . 9 Gun 320 | . 72 83 113 8 17 . . . 25 . 2 Cannon 31 | . . 1 12 . . . . 11 7 . . Launcher 30 | . . 11 6 . 1 . 4 . 2 . 6 Special 1 | . . . . . . . . . . . 1 Kinetic 214 | . 45 83 47 3 9 . . . 25 . 2 Thermal 119 | . 27 1 78 5 8 . . . . . . Explosive 30 | . . 11 6 . 1 . 4 . 2 . 6 Electromagnetic 18 | . . . . . . . . 11 7 . . Robot Hit Streak 22 | . 5 8 22 2 6 . . 3 3 . 9 Robot Miss Streak 5 | . 4 4 5 2 2 . 5 2 2 . . Penetration Max . | . . . . . . . . . . . . Secondary Targets 6 | . 4 . . . 2 . . . . . . Max Gunslinging Chain 1 | . 1 . . . 1 . . . . . . Capacitor 3 | . . . . . . . . 3 . . . Shots Hit Robots 232 | . 43 61 86 4 10 . . 6 14 . 8 Core Hits 160 | . 23 31 51 2 11 . 4 8 4 . 26 Critical Kills 2 | . . . 1 . . . . . 1 . . Critical Parts Destroyed 1 | . . . . . . . . . 1 . . Critical Strikes 6 | . 1 . 3 . . . . . 2 . . Burn 3 | . 1 . 2 . . . . . . . . Destroy 3 | . . . 1 . . . . . 2 . . Melee Attacks . | . . . . . . . . . . . . Impact . | . . . . . . . . . . . . Slashing . | . . . . . . . . . . . . Piercing . | . . . . . . . . . . . . Sneak Attacks . | . . . . . . . . . . . . Combat Hostiles . | . . . . . . . . . . . . Follow-up Attacks . | . . . . . . . . . . . . Damage Inflicted 8430 | . 519 1670 2107 64 667 . 179 538 465 . 2221 Guns 3270 | . 519 811 1163 64 191 . . . 463 . 59 Cannons 401 | . . 21 149 . . . . 231 . . . Explosions 4759 | . . 838 795 . 476 . 179 307 2 . 2162 Melee . | . . . . . . . . . . . . Ramming . | . . . . . . . . . . . . Kinetic 2242 | . 273 811 522 36 78 . . . 463 . 59 Thermal 1722 | . 246 21 790 28 442 . . 168 . . 27 Explosive 4096 | . . 838 795 . 147 . 179 . 2 . 2135 Electromagnetic 370 | . . . . . . . . 370 . . . Impact . | . . . . . . . . . . . . Slashing . | . . . . . . . . . . . . Piercing . | . . . . . . . . . . . . Highest Corruption 10 | . . . 1 . . . 8 . . . 10 Average Corruption 5 | . . . 1 . . . 8 . . . 8 Corruption Purged . | . . . . . . . . . . . . Corruption Blocked . | . . . . . . . . . . . . Effects 6 | . . . . . . . 1 . . . 5 Message Errors 1 | . . . . . . . . . . . 1 Matter Fused 3 | . . . . . . . 1 . . . 2 Data Loss (major) 1 | . . . . . . . . . . . 1 Weapon Failures 1 | . . . . . . . . . . . 1 Overload Shots . | . . . . . . . . . . . . Overflow Damage 284 | . . . 31 . 119 . 16 78 . . 40 Projectiles . | . . . . . . . . . . . . Explosions 284 | . . . 31 . 119 . 16 78 . . 40 Melee . | . . . . . . . . . . . . Knockbacks . | . . . . . . . . . . . . Impact . | . . . . . . . . . . . . Kinetic . | . . . . . . . . . . . . Secondary . | . . . . . . . . . . . . Self-Inflicted Damage 481 | . . 58 49 . 129 . 142 54 49 . . Shots 10 | . . 2 1 . 2 . 3 1 1 . . Rammed . | . . . . . . . . . . . . Targets Rammed . | . . . . . . . . . . . . Kicked . | . . . . . . . . . . . . Crushed . | . . . . . . . . . . . . Highest Temperature 255 | . 153 30 212 66 108 . . 255 144 . 4 Average Temperature 47 | . 40 10 50 26 53 . . 93 28 . 4 Received Heat Transfer 1148 | . 144 231 225 . 207 . . 140 60 48 93 Siege Activations . | . . . . . . . . . . . . Robots Corrupted 1 | . . . . . . . . 1 . . . Combat Hostiles 1 | . . . . . . . . 1 . . . Parts Fried 2 | . . . . . . . . 2 . . . Impact Corruptions . | . . . . . . . . . . . . Robots Melted . | . . . . . . . . . . . . Combat Hostiles . | . . . . . . . . . . . . Parts Melted 5 | . . . 3 . . . . . 2 . . Heat Transferred 3450 | . 695 37 2072 74 422 . . 100 . . 50 Parts Sabotaged . | . . . . . . . . . . . . Parts Stolen . | . . . . . . . . . . . . Parts Stripped . | . . . . . . . . . . . . Power Chain Reactions 2 | . . . . . . . . . 1 . 1 Alert | -11 -10 -9 -8 -7 -6 -5 -5 -4 -4 -3 -3 ------- Run | Yrd Mat Mat Mat Fac Fac Fac DSF Fac Arm Res Tes Peak Influence 790 | . 288 230 790 202 396 174 191 445 758 344 655 Initial 193 | . . 62 91 156 98 174 121 100 98 190 193 Average 249 | . 138 145 447 178 185 174 147 218 264 235 452 Maximum Alert Level 3 | . 1 1 3 1 1 . . 2 3 1 2 Low Security (%) 57 | . 61 80 19 95 56 100 100 60 70 32 . Level 1 26 | . 38 19 35 4 43 . . 34 8 67 33 Level 2 8 | . . . 18 . . . . 4 11 . 65 Level 3 6 | . . . 26 . . . . . 10 . . Level 4 . | . . . . . . . . . . . . Level 5 . | . . . . . . . . . . . . High Security . | . . . . . . . . . . . . Max Security . | . . . . . . . . . . . . Squads Dispatched 28 | . 4 . 5 2 1 . 2 5 2 1 6 Investigation 20 | . 3 . 4 1 1 . . 4 2 1 4 Extermination . | . . . . . . . . . . . . Reinforcement 8 | . 1 . 1 1 . . 2 1 . . 2 Assault . | . . . . . . . . . . . . Garrison . | . . . . . . . . . . . . Intercept . | . . . . . . . . . . . . Searches Triggered . | . . . . . . . . . . . . Construction Impeded . | . . . . . . . . . . . . Haulers Reinforced . | . . . . . . . . . . . . Active Scanning Responses . | . . . . . . . . . . . . Cargo Convoy Interrupts . | . . . . . . . . . . . . Stealth | -11 -10 -9 -8 -7 -6 -5 -5 -4 -4 -3 -3 --------- Run | Yrd Mat Mat Mat Fac Fac Fac DSF Fac Arm Res Tes Distress Signals 7 | . . 1 3 1 1 . . . . 1 . Communications Jammed 29 | . . . . . . . . 9 20 . . Distress Signals 29 | . . . . . . . . 9 20 . . Times Spotted 196 | . 14 17 40 3 17 . 12 24 32 12 25 Peak Tracking Total 16 | . 4 8 9 1 13 . 6 14 16 11 15 Tactical Retreats 15 | . . 1 1 . . . 2 6 2 1 2 Traps | -11 -10 -9 -8 -7 -6 -5 -5 -4 -4 -3 -3 ------- Run | Yrd Mat Mat Mat Fac Fac Fac DSF Fac Arm Res Tes Traps Triggered 5 | . 1 . 1 . . . 1 1 . . 1 Indirectly . | . . . . . . . . . . . . Trap Hack Attempts . | . . . . . . . . . . . . Triggered . | . . . . . . . . . . . . Disarmed . | . . . . . . . . . . . . Reprogrammed 4 | . . . . . . . . . 4 . . Reused . | . . . . . . . . . . . . Traps Extracted . | . . . . . . . . . . . . Installed . | . . . . . . . . . . . . Triggered 2 | . . . . . . . . 1 . 1 . Objects Rigged 6 | . . . . . 3 . . 3 . . . Exploded 3 | . . . . . 2 . . 1 . . . Machines | -11 -10 -9 -8 -7 -6 -5 -5 -4 -4 -3 -3 ---------- Run | Yrd Mat Mat Mat Fac Fac Fac DSF Fac Arm Res Tes Machines Disabled 23 | . . 2 1 . 4 . . 11 4 . 1 Max in Single Turn 7 | . . 1 1 . 2 . . 7 1 . 1 Garrison Access 3 | . . . 1 1 1 . . . . . . Energy Cycler 1 | . . . . . . . . . 1 . . Machines Repaired . | . . . . . . . . . . . . Machines Dismantled . | . . . . . . . . . . . . Machines Sabotaged 2 | . 1 . . . . . . . . . 1 Overloaded Fab Kills 1 | . . . . . . . . . 1 . . Hacking | -11 -10 -9 -8 -7 -6 -5 -5 -4 -4 -3 -3 --------- Run | Yrd Mat Mat Mat Fac Fac Fac DSF Fac Arm Res Tes Machines Accessed 41 | . 3 4 9 5 3 1 . 5 4 3 4 Terminals 26 | . 2 4 6 2 1 1 . 3 2 1 4 Fabricators 4 | . . . . . 1 . . 1 1 1 . Repair Stations 3 | . . . 1 2 . . . . . . . Recycling Units 4 | . 1 . 1 . . . . . 1 1 . Scanalyzers 1 | . . . . . . . . 1 . . . Garrison Access 3 | . . . 1 1 1 . . . . . . Total Hacks 202 | . 13 27 37 17 14 1 . 21 25 15 32 Successful 131 | . 7 13 26 13 9 1 . 15 21 12 14 Failed 70 | . 5 14 11 4 5 . . 6 4 3 18 Catastrophic 7 | . . . 3 1 2 . . . . . 1 Database Lockouts 1 | . 1 . . . . . . . . . . Manual 112 | . 7 16 13 5 8 . . 7 22 7 27 Terminals 151 | . 11 27 27 8 4 1 . 13 21 7 32 Fabricators 18 | . . . . . 9 . . 2 2 5 . Repair Stations 10 | . . . 3 7 . . . . . . . Recycling Units 10 | . 2 . 3 . . . . . 2 3 . Scanalyzers 6 | . . . . . . . . 6 . . . Garrison Access 7 | . . . 4 2 1 . . . . . . Terminal Hacks 66 | . 3 7 16 5 1 1 . 5 14 4 10 Record 1 | . . . . 1 . . . . . . . Part Schematic 4 | . . . . . . . . . 3 . 1 Robot Schematic 3 | . . . . . . . . . 3 . . Prototype ID Bank 11 | . 1 2 4 . . . . . . . 4 Open DSF 2 | . . . . 1 . 1 . . . . . Level Access Points 3 | . . . . . 1 . . . 1 1 . Branch Access Points 4 | . . . . 1 . . . . 1 1 1 Machine Index 2 | . . . 1 . . . . . . . 1 Terminal Index 4 | . . 1 1 . . . . . . 1 1 Repair Station Index 1 | . . . 1 . . . . . . . . Alert Level 9 | . . 1 2 1 . . . 1 2 1 1 Unreport Threat 9 | . . 1 3 . . . . 3 2 . . Locate Traps 6 | . 1 . 3 . . . . 1 . . 1 Reprogram Traps 1 | . . . . . . . . . 1 . . Security Status 1 | . . . . . . . . . 1 . . Patrol Status 3 | . 1 1 1 . . . . . . . . Zone Layout 2 | . . 1 . 1 . . . . . . . Fabricator Hacks 7 | . . . . . 2 . . 1 1 3 . Network Status 4 | . . . . . 1 . . 1 1 1 . Load Schematic 1 | . . . . . . . . . . 1 . Build 2 | . . . . . 1 . . . . 1 . Repair Station Hacks 9 | . . . 3 6 . . . . . . . Scan Component 4 | . . . 1 3 . . . . . . . Repair 4 | . . . 1 3 . . . . . . . Refit 1 | . . . 1 . . . . . . . . Recycling Unit Hacks 10 | . 2 . 3 . . . . . 2 3 . Process 2 | . . . 1 . . . . . . 1 . Report Inventory 4 | . 1 . 1 . . . . . 1 1 . Retrieve Matter 2 | . . . 1 . . . . . . 1 . Retrieve Components 2 | . 1 . . . . . . . 1 . . Scanalyzer 5 | . . . . . . . . 5 . . . Insert Component 2 | . . . . . . . . 2 . . . Analyze 3 | . . . . . . . . 3 . . . Garrison Access Hacks 3 | . . . 1 1 1 . . . . . . Seal Access 3 | . . . 1 1 1 . . . . . . Unauthorized Hacks 30 | . 2 5 3 1 5 . . 4 4 2 4 Terminals 22 | . 2 5 3 1 1 . . 2 3 1 4 Assimilate 1 | . . . 1 . . . . . . . . Botnet 13 | . 1 3 2 1 . . . 1 2 1 2 Detonate 4 | . . . . . 1 . . 1 1 . 1 Operators 2 | . . 2 . . . . . . . . . Sabotage 2 | . 1 . . . . . . . . . 1 Fabricators 7 | . . . . . 4 . . 1 1 1 . Report 1 | . . . . . 1 . . . . . . Prioritize 2 | . . . . . 1 . . . . 1 . Liberate 1 | . . . . . 1 . . . . . . Haulers 1 | . . . . . 1 . . . . . . Overload 1 | . . . . . . . . . 1 . . Recompile 1 | . . . . . . . . 1 . . . Repair Stations . | . . . . . . . . . . . . Recycling Units . | . . . . . . . . . . . . Scanalyzers 1 | . . . . . . . . 1 . . . Extract 1 | . . . . . . . . 1 . . . Garrison Access . | . . . . . . . . . . . . Data Cores Recovered 3 | . 1 . . . 1 . . . 1 . . Used 2 | . 1 . . . . . . . 1 . . Hacking Detections 28 | . 2 4 7 2 1 . . 3 3 2 4 Full Trace Events 14 | . 1 . 4 1 1 . . 2 1 1 3 Feedback Events 1 | . . . . . . . . . . . 1 Hackware Fried 1 | . . . . . . . . . . . 1 Feedback Blocked . | . . . . . . . . . . . . Robot Schematics Acquired 3 | . . . . . . . . . 3 . . Robots Built . | . . . . . . . . . . . . Authchips . | . . . . . . . . . . . . Time . | . . . . . . . . . . . . Total Robot Build Rating . | . . . . . . . . . . . . Part Schematics Acquired 10 | . . . . . . . . 6 3 . 1 Parts Built 3 | . . . . . 1 . . . . 2 . Authchips 1 | . . . . . . . . . . 1 . Time 114 | . . . . . 95 . . . . 19 . Total Part Build Rating 19 | . . . . . 5 . . . . 14 . Parts Repaired 4 | . . . 1 3 . . . . . . . Time 185 | . . . 32 153 . . . . . . . Parts Recycled . | . . . . . . . . . . . . Recycled Matter 75 | . . . 10 . . . . . . 65 . Retrieved Matter 75 | . . . 10 . . . . . . 65 . Retrieved Components 13 | . 10 . . . . . . . 3 . . Parts Scanalyzed 2 | . . . . . . . . 2 . . . Part Schematics Acquired 2 | . . . . . . . . 2 . . . Parts Damaged . | . . . . . . . . . . . . Bothacking | -11 -10 -9 -8 -7 -6 -5 -5 -4 -4 -3 -3 ------------ Run | Yrd Mat Mat Mat Fac Fac Fac DSF Fac Arm Res Tes Used RIF Installer . | . . . . . . . . . . . . Robots Hacked 1 | . . . . . . . . . . . 1 Non-combat 1 | . . . . . . . . . . . 1 Combat . | . . . . . . . . . . . . Robot Hacks Applied 1 | . . . . . . . . . . . 1 check_alert 1 | . . . . . . . . . . . 1 Relay Couplers Released . | . . . . . . . . . . . . Fabnet Peak Effective % . | . . . . . . . . . . . . Robots Rewired . | . . . . . . . . . . . . Allies Hacked . | . . . . . . . . . . . . Hacks Repelled . | . . . . . . . . . . . . Allies | -11 -10 -9 -8 -7 -6 -5 -5 -4 -4 -3 -3 -------- Run | Yrd Mat Mat Mat Fac Fac Fac DSF Fac Arm Res Tes Total Allies 11 | . . . 1 . . . . . 10 . . Largest Group 10 | . . . 1 . . . . . 10 . . Highest-Rated Group 481 | . . . 10 . . . . . 481 . . Highest-Rated Ally 58 | . . . 10 . . . . . 58 . . Total Orders . | . . . . . . . . . . . . Ally Attacks 85 | . . . . . . . . . 85 . . Total Damage 2393 | . . . . . . . . . 2393 . . Kills 12 | . . . . . . . . . 12 . . Allies Corrupted . | . . . . . . . . . . . . Allies Melted 1 | . . . . . . . . . 1 . . Intel | -11 -10 -9 -8 -7 -6 -5 -5 -4 -4 -3 -3 ------- Run | Yrd Mat Mat Mat Fac Fac Fac DSF Fac Arm Res Tes Robot Analysis Total . | . . . . . . . . . . . . Derelict Logs Recovered . | . . . . . . . . . . . . Drone Launches . | . . . . . . . . . . . . Drone Recoveries . | . . . . . . . . . . . . Exploration | -11 -10 -9 -8 -7 -6 -5 -5 -4 -4 -3 -3 ------------- Run | Yrd Mat Mat Mat Fac Fac Fac DSF Fac Arm Res Tes Turns Passed 3183 | . 478 468 607 344 165 17 120 239 427 149 169 Spaces Moved 3845 | 1 298 368 901 361 209 41 145 454 425 323 319 Core 55 | . . . . . 30 . . . . . 25 Treads . | . . . . . . . . . . . . Legs 387 | 1 298 88 . . . . . . . . . Wheels 100 | . . 100 . . . . . . . . . Hover . | . . . . . . . . . . . . Flight 3303 | . . 180 901 361 179 41 145 454 425 323 294 Fastest Speed 30 | 120 120 37 34 31 31 34 34 32 35 34 30 Average Speed 45 | 120 120 74 34 33 34 34 38 36 38 36 36 Slowest Speed 250 | 120 120 250 34 107 50 34 114 109 112 39 120 Overloaded Moves . | . . . . . . . . . . . . Propulsion Burnouts . | . . . . . . . . . . . . Robots Hopped 36 | . . 1 14 3 1 . 2 6 . 4 5 Cave-ins Triggered 1 | . . . . . . . . . . . 1 Exploration Rate (%) 29 | 2 57 32 66 9 7 2 81 15 26 12 43 Regions Visited 11 Branch Regions 2 Pre-discovered Areas . | . . . . . . . . . . . . Known Exits Taken 7 | . . . 1 1 1 1 . 1 1 1 . Unknown Exits Taken 3 | 1 1 1 . . . . . . . . . Scrap Searched . | . . . . . . . . . . . . Spaces Dug 66 | . . . . . . . 6 . 60 . . Terrain Destroyed 425 | . . 44 79 . 70 . 36 26 77 . 93 Melee . | . . . . . . . . . . . . Projectile 4 | . . . . . . . . . 4 . . AOE 421 | . . 44 79 . 70 . 36 26 73 . 93 Terrain Rammed . | . . . . . . . . . . . . Walls Destroyed . | . . . . . . . . . . . . Machines Disabled . | . . . . . . . . . . . . Actions | -11 -10 -9 -8 -7 -6 -5 -5 -4 -4 -3 -3 --------- Run | Yrd Mat Mat Mat Fac Fac Fac DSF Fac Arm Res Tes Total 4855 | . 355 484 1055 569 282 42 198 515 654 346 355 Wait 518 | . 4 2 13 187 59 . 40 17 160 18 18 Move 3765 | . 297 365 873 354 206 40 140 442 424 314 310 Hop 32 | . . 1 13 3 1 . 2 5 . 4 3 Pick Up 33 | . 3 12 10 1 . . . 4 3 . . Fast Attach 79 | . 3 15 15 10 2 1 7 6 11 5 4 Attach 26 | . . 6 6 . 3 1 1 4 2 1 2 Detach 26 | . 1 4 7 2 1 . 2 2 4 . 3 Swap 31 | . 5 4 10 1 1 . 1 . 5 2 2 Drop 68 | . 6 20 15 5 . . 1 6 11 2 2 Fire 258 | . 36 55 93 6 9 . 4 11 34 . 10 Melee . | . . . . . . . . . . . . Ram . | . . . . . . . . . . . . Kick . | . . . . . . . . . . . . Crush . | . . . . . . . . . . . . Escape Stasis 19 | . . . . . . . . 18 . . 1 Rewire . | . . . . . . . . . . . . Trap . | . . . . . . . . . . . . Miscellaneous . | . . . . . . . . . . . . Route ------- -11/Scrapyard -10/Materials (discovered 3 exits: *Mat x2 / [*Min]) -9/Materials -8/Materials -7/Factory (discovered 3 exits: *Fac / Low x2) -6/Factory (discovered 4 exits: *Fac x4) -5/Factory -5/DSF -4/Factory -4/Armory (discovered 2 exits: *Res x2) -3/Research (discovered 5 exits: Res x3 / *Tes x2) -3/Testing History --------- Turn | Location | Event 1 | -11/Scrapyard | Discovered new exit (range 0) 1 | -11/Scrapyard | Entered Materials 78 | -10/Materials | Discovered new exit (range 12) 235 | -10/Materials | Discovered new exit (range 8) 327 | -10/Materials | Build established: Mutant 446 | -10/Materials | Central database locked down 467 | -10/Materials | Discovered new exit (range 11) 479 | -10/Materials | Entered another Materials area 479 | -9/Materials | Evolved 2 slots: Utility x2 899 | -9/Materials | Build established: Hacker-Mutant 937 | -9/Materials | Discovered new exit (range 16) 947 | -9/Materials | Entered another Materials area 947 | -8/Materials | Evolved 2 slots: Propulsion x1, Utility x1 1218 | -8/Materials | Destroyed 11 combat bots 1222 | -8/Materials | Repaired Hvy. Assault Rifle 1445 | -8/Materials | Discovered new exit (range 16) 1551 | -8/Materials | Core integrity fell below 50% 1553 | -8/Materials | Identified exit to Factory 1554 | -8/Materials | Entered Factory 1554 | -7/Factory | Evolved 2 slots: Propulsion x1, Utility x1 1675 | -7/Factory | Identified exit to Lower Caves 1687 | -7/Factory | Discovered new exit (range 16) 1752 | -7/Factory | Repaired Imp. Flight Unit 1757 | -7/Factory | Identified exit to Factory 1813 | -7/Factory | Repaired Imp. Flight Unit 1865 | -7/Factory | Repaired Imp. Flight Unit 1898 | -7/Factory | Entered another Factory area 1898 | -6/Factory | Evolved 2 slots: Utility x2 1951 | -6/Factory | Fabricated Adv. Sensor Array (x1) 2027 | -6/Factory | Identified exit to Factory 2063 | -6/Factory | Entered another Factory area 2063 | -5/Factory | Evolved 2 slots: Power x1, Utility x1 2071 | -5/Factory | Lost 8 parts (1n4u3w) 2080 | -5/Factory | Identified exit to DSF 2080 | -5/Factory | Entered DSF 2107 | -5/DSF | Additional patrols routed to DSF 2183 | -5/DSF | Discovered new exit (range 15) 2194 | -5/DSF | Lost 5 parts (2n2u1w) 2199 | -5/DSF | Identified exit to Factory 2200 | -5/DSF | Entered Factory 2200 | -4/Factory | Evolved 2 slots: Propulsion x1, Utility x1 2212 | -4/Factory | Found Quantum Capacitor 2435 | -4/Factory | Discovered new exit (range 14) 2439 | -4/Factory | Identified exit to Armory 2439 | -4/Factory | Entered Armory 2540 | -4/Armory | Energy Cycler disabled 2622 | -4/Armory | Assisted by bots powering up and referring to "LRC-V3" 2756 | -4/Armory | Build established: Wizard-Mutant 2824 | -4/Armory | Lost 4 allies 2855 | -4/Armory | Identified exit to Research 2866 | -4/Armory | Entered Research 2866 | -3/Research | Evolved 2 slots: Utility x1, Weapon x1 2875 | -3/Research | Lost 5 allies 2951 | -3/Research | Spotted B-86 Titan 2983 | -3/Research | Fabricated Impulse Thruster (x2) 2996 | -3/Research | Identified exit to Research 2996 | -3/Research | Identified exit to Testing 3015 | -3/Research | Entered Testing 3072 | -3/Testing | Scanned by Researcher 3088 | -3/Testing | Unstable Terrabomb Derivative detonated 3104 | -3/Testing | Crushed by falling debris 3105 | -3/Testing | System corruption reached 10% 3131 | -3/Testing | Spotted Striker 3132 | -3/Testing | Spotted Striker 3135 | -3/Testing | Lost 6 parts (2n3u1w) 3135 | -3/Testing | Found Prototype Launcher 3135 | -3/Testing | Identified Tactical Quantum Warhead 3149 | -3/Testing | Adv. Hacking Suite fried by hacking feedback 3160 | -3/Testing | Spotted Alpha 7 3174 | -3/Testing | Core integrity fell below 50% 3184 | -3/Testing | Self-destructed Last Messages --------------- 03144_ Lgt. Antimatter Reactor destroyed. 03146_ Impulse Thruster destroyed. 03146_ Slug penetrates Wall. 03149_ Connecting with Terminal... Feedback: Adv. Hacking Suite fried. 03149_ ALERT: Suspicious activity at Terminal T003. Dispatching Investigation squad. 03151_ Adv. Hacking Suite destroyed. 03155_ Slug penetrates Wall. 03158_ Acquired Prototype Flight Unit. 03158_ Identified Electron Diverter. 03158_ Faulty integration triggers energy drain (-33). 03159_ Dropped Faulty Electron Diverter. 03163_ Penetrated by Slug. 03163_ Slug penetrates Wall. 03167_ Imp. Diametric Drive destroyed. 03169_ Slug penetrates Wall. 03170_ Acquired 7 matter. 03173_ Adv. Hacking Suite destroyed. 03175_ System corrupted: Substantial component data lost. Map ----- +----------------------------------------------------+ | | | | | | | | | | | | | | | | | | | | | | | | | | | ??????????????????????????????? | | ??????????????????????????????# | | ??????????#####?????????????? | | ??????????# #??????????????"" | | ??????????# #????????????? "" | | ???######## ########## ### "" | | ???# g + | | ???# ############# #### | | ???# #??""""?????# | | ???# #??" "?????# | | ???# #??" ?????# | | ???# K #??? ?????# | | ???# @#??? ?????# | | ???#####??? ?????# ####### | | ???????????# +#????# ####### | | ??????????## #????# # [ | | ??????????? ????# # | | ???????????# #????# # [ | | ???????????# #????# / | | ????######## ###### #### = | | ????# ] =# #??# ! | | ????# # #??###/### | | ????# " " + #????? #?? | | ???# "T" # """ #??????#?? | | ?? " "" ########## | | ?# """ / = | | ? # # = ! ! | | = # | | # # | | + """""""% | | !*! # """"""" | | # !* # """"""" | | # *! # | | ## ## ##### ########## | | ?# =##+##### #?????? | | ?########### ^ # #?????? | | ???????????# + #?????? | +----------------------------------------------------+ Best States ------------- Heat Dissipation 46 Energy Generation 41 Energy Capacity 385 Matter Stores 337 Matter Capacity 450 Sight Range 16 Robot Scan Range 16 Terrain Scan Density 10 Jamming Range 16 Power Shielding 33 Propulsion Shielding 66 Weapon Shielding 66 Evasion (%) 71 Targeting Accuracy 12 Salvage Targeting 1 Offensive Hacking 66 Defensive Hacking 34 Authchip Count 3 Item Schematics ----------------- Hvy. Disruptor Cannon | -4/Factory | Scanalyzed Lgt. Antimatter Reactor | -4/Factory | Scanalyzed Component Analysis Suite | -4/Factory | Extracted Imp. Target Analyzer | -4/Factory | Extracted Micro-nuke Launcher | -4/Factory | Extracted Impulse Thruster | -4/Factory | Extracted Gamma Bomb Array | -4/Armory | Hacked Imp. Flight Unit | -4/Armory | Hacked Exp. Targeting Computer | -4/Armory | Hacked Graviton Cannon | -3/Testing | Hacked Robot Schematics ------------------ G-67 Veteran | -4/Armory | Hacked B-36 Bruiser | -4/Armory | Hacked L-31 Rogue | -4/Armory | Hacked Fabricated ------------ Adv. Sensor Array | x1 | -6/Factory | Preloaded Impulse Thruster | x2 | -3/Research | Authchip Alien Tech Used ----------------- None Achievements -------------- None Challenges ------------ None Game ------ Seed CloakingNetworkGreatsword Manual? 0 Play Time 00:47:48 Cumulative 785.4 hours Start 2024.07.05 @ 18:59:05 End 2024.07.06 @ 12:06:20 Sessions 5 Manual Loads 0 Difficulty Rogue Special Mode None Game No. 901 Rogue 623 Adventurer 124 Explorer 154 Win Type - Total 31 Types 25/0/4/1/0/0/0/1/0 Lore% 84 Gallery% 92 Achievement% 77 Wizard Run 0 Options --------- Layout 0 ASCII 1 Keyboard 1 Movement Numpad Keybinds 0 Fullscreen 2 Font 18/Smallcaps Map View 76x50 Zoom Use 0% Tactical HUD 1 Map Filters NONE Filters NONE Steam 1 RUN: 8cc31209-a108-4dab-b027-625b3fbca680